[Event "Titled Tuesday Blitz March 28 Late 2023"]
[White "Albornoz Cabrera, Carlos Daniel"]
[Black "Ahn, Hongjin"]
[WhiteFideId "3518736"]
[BlackFideId "13201492"]
[WhiteElo "2501"]
[BlackElo "2182"]
[Result "1-0"]
[Round "02"]
[TimeControl "180+2"]
[Date "2023.03.28"]
[WhiteClock "0:00:37"]
[BlackClock "0:00:02"]

1. e4 {[%clk 0:03:00]}  c5 {[%clk 0:02:58]} 2. Nf3 {[%clk 0:03:01]}  Nf6 {[%clk 0:02:59]} 3. Nc3 {[%clk 0:02:59]}  d5 {[%clk 0:02:57]} 4. exd5 {[%clk 0:02:58]}  Nxd5 {[%clk 0:02:58]} 5. Bb5+ {[%clk 0:02:58]}  Bd7 {[%clk 0:02:58]} 6. Ne5 {[%clk 0:02:58]}  Bxb5 {[%clk 0:02:46]} 7. Qf3 {[%clk 0:02:58]}  Nf6 {[%clk 0:01:36]} 8. Qxb7 {[%clk 0:02:46]}  Bd7 {[%clk 0:01:34]} 9. Qxa8 {[%clk 0:02:44]}  e6 {[%clk 0:01:35]} 10. Nxd7 {[%clk 0:02:43]}  Nfxd7 {[%clk 0:01:35]} 11. O-O {[%clk 0:02:42]}  Bd6 {[%clk 0:01:35]} 12. Qf3 {[%clk 0:02:41]}  O-O {[%clk 0:01:35]} 13. d3 {[%clk 0:02:39]}  Ne5 {[%clk 0:01:35]} 14. Qe2 {[%clk 0:02:39]}  Nbc6 {[%clk 0:01:36]} 15. Be3 {[%clk 0:02:39]}  Nd4 {[%clk 0:01:33]} 16. Bxd4 {[%clk 0:02:38]}  cxd4 {[%clk 0:01:34]} 17. Ne4 {[%clk 0:02:37]}  Bc7 {[%clk 0:01:34]} 18. Nd2 {[%clk 0:02:30]}  Ng6 {[%clk 0:01:30]} 19. g3 {[%clk 0:02:30]}  e5 {[%clk 0:01:21]} 20. c3 {[%clk 0:02:28]}  dxc3 {[%clk 0:01:16]} 21. bxc3 {[%clk 0:02:28]}  f5 {[%clk 0:01:17]} 22. Nc4 {[%clk 0:02:15]}  Qg5 {[%clk 0:01:00]} 23. Rab1 {[%clk 0:02:09]}  h5 {[%clk 0:00:44]} 24. Rb7 {[%clk 0:02:07]}  Rf7 {[%clk 0:00:44]} 25. Ne3 {[%clk 0:01:44]}  Nf4 {[%clk 0:00:36]} 26. Qf3 {[%clk 0:01:43]}  h4 {[%clk 0:00:07]} 27. Nd5 {[%clk 0:01:37]}  e4 {[%clk 0:00:08]} 28. dxe4 {[%clk 0:01:36]}  fxe4 {[%clk 0:00:08]} 29. Qxe4 {[%clk 0:01:24]}  Nxd5 {[%clk 0:00:07]} 30. Qe8+ {[%clk 0:01:03]}  Rf8 {[%clk 0:00:08]} 31. Qe6+ {[%clk 0:01:04]}  Kh8 {[%clk 0:00:08]} 32. c4 {[%clk 0:01:02]}  hxg3 {[%clk 0:00:07]} 33. Qxd5 {[%clk 0:00:47]}  gxf2+ {[%clk 0:00:02]} 34. Kh1 {[%clk 0:00:47]}  Rf5 {[%clk 0:00:02]} 35. Qg2 {[%clk 0:00:45]}  Qf4 {[%clk 0:00:02]} 36. Rxc7 {[%clk 0:00:37]}  Qxc7 {[%clk 0:00:02]} 37. Qh3+ {[%clk 0:00:37]}  Kg8 {[%clk 0:00:01]} 38. Qxf5 {[%clk 0:00:37]}  Qc6+ {[%clk 0:00:02]} 39. Qd5+ {[%clk 0:00:37]}  Qxd5+ {[%clk 0:00:02]} 40. cxd5 {[%clk 0:00:37]} 1-0


[Site "https://www.chess.com"]

[Event "Titled Tuesday Blitz March 28 Late 2023"]
[White "angelgab3"]
[Black "Riehle, Marco"]
[BlackFideId "12904392"]
[WhiteElo "2527"]
[BlackElo "2462"]
[Result "1/2-1/2"]
[Round "02"]
[TimeControl "180+2"]
[Date "2023.03.28"]
[WhiteClock "0:00:15"]
[BlackClock "0:01:07"]

1. e4 {[%clk 0:03:00]}  e5 {[%clk 0:02:59]} 2. Nf3 {[%clk 0:03:01]}  Nf6 {[%clk 0:02:58]} 3. Nxe5 {[%clk 0:03:00]}  Nxe4 {[%clk 0:02:58]} 4. Qe2 {[%clk 0:03:00]}  Qe7 {[%clk 0:02:58]} 5. Qxe4 {[%clk 0:03:01]}  d6 {[%clk 0:02:58]} 6. d4 {[%clk 0:03:01]}  dxe5 {[%clk 0:02:58]} 7. dxe5 {[%clk 0:03:01]}  Nc6 {[%clk 0:02:59]} 8. Bb5 {[%clk 0:03:00]}  Bd7 {[%clk 0:02:59]} 9. O-O {[%clk 0:03:00]}  O-O-O {[%clk 0:02:59]} 10. Rd1 {[%clk 0:02:51]}  Nxe5 {[%clk 0:02:55]} 11. Bxd7+ {[%clk 0:02:52]}  Rxd7 {[%clk 0:02:54]} 12. Rxd7 {[%clk 0:02:51]}  Nxd7 {[%clk 0:02:55]} 13. Qxe7 {[%clk 0:02:50]}  Bxe7 {[%clk 0:02:55]} 14. Be3 {[%clk 0:02:47]}  Bf6 {[%clk 0:02:54]} 15. c3 {[%clk 0:02:47]}  Ne5 {[%clk 0:02:54]} 16. Nd2 {[%clk 0:02:47]}  Rd8 {[%clk 0:02:54]} 17. Kf1 {[%clk 0:02:42]}  Ng4 {[%clk 0:02:49]} 18. Ke2 {[%clk 0:02:34]}  Nxe3 {[%clk 0:02:48]} 19. fxe3 {[%clk 0:02:35]}  Be5 {[%clk 0:02:44]} 20. Rf1 {[%clk 0:02:32]}  f6 {[%clk 0:02:40]} 21. Nc4 {[%clk 0:02:23]}  Re8 {[%clk 0:02:37]} 22. h3 {[%clk 0:02:16]}  b5 {[%clk 0:02:35]} 23. Nxe5 {[%clk 0:02:15]}  Rxe5 {[%clk 0:02:36]} 24. Rd1 {[%clk 0:02:14]}  c5 {[%clk 0:02:33]} 25. Kf3 {[%clk 0:02:12]}  Kc7 {[%clk 0:02:31]} 26. e4 {[%clk 0:02:05]}  a5 {[%clk 0:02:30]} 27. b3 {[%clk 0:02:03]}  Re6 {[%clk 0:02:27]} 28. Rd5 {[%clk 0:02:02]}  Kc6 {[%clk 0:02:26]} 29. g4 {[%clk 0:01:55]}  Rd6 {[%clk 0:02:24]} 30. c4 {[%clk 0:01:48]}  Re6 {[%clk 0:02:18]} 31. Kf4 {[%clk 0:01:47]}  Re7 {[%clk 0:02:15]} 32. h4 {[%clk 0:01:47]}  bxc4 {[%clk 0:02:14]} 33. bxc4 {[%clk 0:01:47]}  Rb7 {[%clk 0:02:14]} 34. Rd8 {[%clk 0:01:39]}  Rb4 {[%clk 0:02:06]} 35. Rc8+ {[%clk 0:01:34]}  Kd6 {[%clk 0:02:06]} 36. Rd8+ {[%clk 0:01:33]}  Ke7 {[%clk 0:02:05]} 37. Ra8 {[%clk 0:01:30]}  a4 {[%clk 0:01:53]} 38. Ra7+ {[%clk 0:01:28]}  Kf8 {[%clk 0:01:52]} 39. h5 {[%clk 0:01:17]}  Rxc4 {[%clk 0:01:51]} 40. Ra8+ {[%clk 0:01:17]}  Kf7 {[%clk 0:01:48]} 41. Ra7+ {[%clk 0:01:18]}  Ke6 {[%clk 0:01:45]} 42. Rxg7 {[%clk 0:01:18]}  Rc2 {[%clk 0:01:46]} 43. Rc7 {[%clk 0:01:10]}  Rf2+ {[%clk 0:01:43]} 44. Ke3 {[%clk 0:01:04]}  Rxa2 {[%clk 0:01:44]} 45. Rxc5 {[%clk 0:01:04]}  a3 {[%clk 0:01:44]} 46. Ra5 {[%clk 0:01:04]}  Ra1 {[%clk 0:01:44]} 47. Ra6+ {[%clk 0:00:59]}  Kf7 {[%clk 0:01:39]} 48. Kf2 {[%clk 0:00:52]}  a2 {[%clk 0:01:39]} 49. Kg2 {[%clk 0:00:53]}  h6 {[%clk 0:01:33]} 50. Kh2 {[%clk 0:00:53]}  Ke7 {[%clk 0:01:33]} 51. Kg2 {[%clk 0:00:53]}  Kd7 {[%clk 0:01:33]} 52. Kh2 {[%clk 0:00:48]}  Kc7 {[%clk 0:01:34]} 53. e5 {[%clk 0:00:48]}  fxe5 {[%clk 0:01:34]} 54. g5 {[%clk 0:00:49]}  hxg5 {[%clk 0:01:29]} 55. h6 {[%clk 0:00:49]}  Rf1 {[%clk 0:01:23]} 56. h7 {[%clk 0:00:38]}  Rf8 {[%clk 0:01:22]} 57. Rxa2 {[%clk 0:00:38]}  Rh8 {[%clk 0:01:17]} 58. Kg3 {[%clk 0:00:34]}  Kd6 {[%clk 0:01:13]} 59. Ra7 {[%clk 0:00:26]}  e4 {[%clk 0:01:13]} 60. Kg4 {[%clk 0:00:21]}  Ke5 {[%clk 0:01:08]} 61. Kxg5 {[%clk 0:00:18]}  e3 {[%clk 0:01:08]} 62. Re7+ {[%clk 0:00:17]}  Kd4 {[%clk 0:01:09]} 63. Kf4 {[%clk 0:00:15]}  Rf8+ {[%clk 0:01:09]} 64. Kg3 {[%clk 0:00:15]}  Kd3 {[%clk 0:01:09]} 65. Rd7+ {[%clk 0:00:15]}  Kc3 {[%clk 0:01:06]} 66. Kg4 {[%clk 0:00:13]}  e2 {[%clk 0:01:06]} 67. Re7 {[%clk 0:00:13]}  Kd2 {[%clk 0:01:06]} 68. Kg5 {[%clk 0:00:14]}  Rh8 {[%clk 0:01:05]} 69. Kg6 {[%clk 0:00:14]}  Rxh7 {[%clk 0:01:05]} 70. Kxh7 {[%clk 0:00:14]}  e1=Q {[%clk 0:01:06]} 71. Rxe1 {[%clk 0:00:15]}  Kxe1 {[%clk 0:01:07]} 1/2-1/2


[Site "https://www.chess.com"]

[Event "Titled Tuesday Blitz March 28 Late 2023"]
[White "Remolar Gallen, Jose"]
[Black "Idani, Pouya"]
[WhiteFideId "2215187"]
[BlackFideId "12510130"]
[WhiteElo "2223"]
[BlackElo "2574"]
[Result "1-0"]
[Round "02"]
[TimeControl "180+2"]
[Date "2023.03.28"]
[WhiteClock "0:00:09"]
[BlackClock "0:00:17"]

1. e4 {[%clk 0:02:56]}  c6 {[%clk 0:02:59]} 2. d4 {[%clk 0:02:55]}  d5 {[%clk 0:03:00]} 3. e5 {[%clk 0:02:56]}  Bf5 {[%clk 0:02:58]} 4. g4 {[%clk 0:02:56]}  Bd7 {[%clk 0:02:53]} 5. f4 {[%clk 0:02:56]}  e6 {[%clk 0:02:46]} 6. Nf3 {[%clk 0:02:56]}  c5 {[%clk 0:02:42]} 7. c3 {[%clk 0:02:55]}  h5 {[%clk 0:02:41]} 8. g5 {[%clk 0:02:46]}  Ne7 {[%clk 0:02:37]} 9. Bd3 {[%clk 0:02:45]}  Nf5 {[%clk 0:02:33]} 10. Bxf5 {[%clk 0:02:29]}  exf5 {[%clk 0:02:34]} 11. Be3 {[%clk 0:02:28]}  cxd4 {[%clk 0:02:27]} 12. Bxd4 {[%clk 0:02:15]}  Nc6 {[%clk 0:02:26]} 13. Nbd2 {[%clk 0:02:16]}  Be6 {[%clk 0:02:20]} 14. Nb3 {[%clk 0:02:13]}  g6 {[%clk 0:02:16]} 15. Qe2 {[%clk 0:02:06]}  Be7 {[%clk 0:02:09]} 16. Bc5 {[%clk 0:01:55]}  O-O {[%clk 0:02:02]} 17. Bxe7 {[%clk 0:01:49]}  Qxe7 {[%clk 0:02:03]} 18. O-O {[%clk 0:01:37]}  d4 {[%clk 0:01:53]} 19. Nbxd4 {[%clk 0:01:33]}  Bd5 {[%clk 0:01:53]} 20. Rfe1 {[%clk 0:01:26]}  Nxd4 {[%clk 0:01:50]} 21. Nxd4 {[%clk 0:01:24]}  Rac8 {[%clk 0:01:49]} 22. Rad1 {[%clk 0:01:11]}  Be4 {[%clk 0:01:47]} 23. Nb5 {[%clk 0:00:51]}  Qc5+ {[%clk 0:01:46]} 24. Kf1 {[%clk 0:00:51]}  Bc6 {[%clk 0:01:22]} 25. Nd6 {[%clk 0:00:50]}  Rcd8 {[%clk 0:01:23]} 26. Qe3 {[%clk 0:00:36]}  Qa5 {[%clk 0:01:23]} 27. e6 {[%clk 0:00:25]}  Rxd6 {[%clk 0:00:57]} 28. Rxd6 {[%clk 0:00:24]}  Qb5+ {[%clk 0:00:57]} 29. Kg1 {[%clk 0:00:23]}  Qxb2 {[%clk 0:00:56]} 30. exf7+ {[%clk 0:00:21]}  Kh7 {[%clk 0:00:54]} 31. Rd2 {[%clk 0:00:17]}  Qa3 {[%clk 0:00:20]} 32. Qe7 {[%clk 0:00:16]}  Qxe7 {[%clk 0:00:19]} 33. Rxe7 {[%clk 0:00:17]}  Kg7 {[%clk 0:00:19]} 34. Kf2 {[%clk 0:00:07]}  Rc8 {[%clk 0:00:19]} 35. Rd6 {[%clk 0:00:04]}  Be4 {[%clk 0:00:15]} 36. Ree6 {[%clk 0:00:03]}  Rxc3 {[%clk 0:00:14]} 37. Rxg6+ {[%clk 0:00:04]}  Kxf7 {[%clk 0:00:14]} 38. Rdf6+ {[%clk 0:00:04]}  Ke7 {[%clk 0:00:15]} 39. Rg7+ {[%clk 0:00:05]}  Ke8 {[%clk 0:00:15]} 40. Rg8+ {[%clk 0:00:06]}  Ke7 {[%clk 0:00:15]} 41. Rg7+ {[%clk 0:00:06]}  Ke8 {[%clk 0:00:16]} 42. g6 {[%clk 0:00:07]}  Rf3+ {[%clk 0:00:16]} 43. Ke2 {[%clk 0:00:07]}  Rxf4 {[%clk 0:00:16]} 44. Re6+ {[%clk 0:00:08]}  Kf8 {[%clk 0:00:17]} 45. Rf7+ {[%clk 0:00:08]}  Kg8 {[%clk 0:00:17]} 46. Re8# {[%clk 0:00:09]} 1-0


[Site "https://www.chess.com"]

[Event "Titled Tuesday Blitz March 28 Late 2023"]
[White "Miszler, Levente"]
[Black "Aradhya, Garg"]
[WhiteFideId "763276"]
[BlackFideId "25006746"]
[WhiteElo "2176"]
[BlackElo "2263"]
[Result "0-1"]
[Round "02"]
[TimeControl "180+2"]
[Date "2023.03.28"]
[WhiteClock "0:01:09"]
[BlackClock "0:00:26"]

1. e4 {[%clk 0:03:00]}  e5 {[%clk 0:02:58]} 2. Nf3 {[%clk 0:03:00]}  Nc6 {[%clk 0:02:58]} 3. Bc4 {[%clk 0:02:57]}  Nf6 {[%clk 0:02:57]} 4. Ng5 {[%clk 0:02:56]}  d5 {[%clk 0:02:57]} 5. exd5 {[%clk 0:02:56]}  b5 {[%clk 0:02:57]} 6. Bxb5 {[%clk 0:02:53]}  Qxd5 {[%clk 0:02:57]} 7. Bf1 {[%clk 0:02:51]}  Bc5 {[%clk 0:02:29]} 8. Nc3 {[%clk 0:02:41]}  Qd4 {[%clk 0:02:29]} 9. Qe2 {[%clk 0:02:42]}  Bg4 {[%clk 0:02:24]} 10. f3 {[%clk 0:02:40]}  Bf5 {[%clk 0:02:23]} 11. Nge4 {[%clk 0:02:39]}  O-O {[%clk 0:02:20]} 12. d3 {[%clk 0:02:30]}  Nxe4 {[%clk 0:02:07]} 13. fxe4 {[%clk 0:02:27]}  Be6 {[%clk 0:01:52]} 14. Bd2 {[%clk 0:02:21]}  Rab8 {[%clk 0:01:50]} 15. Rb1 {[%clk 0:02:17]}  Nb4 {[%clk 0:01:45]} 16. Kd1 {[%clk 0:02:12]}  Nxa2 {[%clk 0:01:44]} 17. Nxa2 {[%clk 0:02:07]}  Bxa2 {[%clk 0:01:43]} 18. Bc3 {[%clk 0:02:08]}  Qd6 {[%clk 0:00:58]} 19. Ra1 {[%clk 0:02:05]}  Be6 {[%clk 0:00:57]} 20. g3 {[%clk 0:02:00]}  Rfd8 {[%clk 0:00:52]} 21. Bg2 {[%clk 0:01:59]}  Bd4 {[%clk 0:00:52]} 22. Kd2 {[%clk 0:01:57]}  Rxb2 {[%clk 0:00:50]} 23. Bxb2 {[%clk 0:01:40]}  Qb4+ {[%clk 0:00:50]} 24. Kd1 {[%clk 0:01:39]}  Bxb2 {[%clk 0:00:47]} 25. Rxa7 {[%clk 0:01:30]}  Bc3 {[%clk 0:00:36]} 26. Qe3 {[%clk 0:01:26]}  Qb1+ {[%clk 0:00:28]} 27. Ke2 {[%clk 0:01:25]}  Qxc2+ {[%clk 0:00:27]} 28. Kf3 {[%clk 0:01:25]}  Bd4 {[%clk 0:00:27]} 29. Rc1 {[%clk 0:01:18]}  Bxe3 {[%clk 0:00:26]} 30. Rxc2 {[%clk 0:01:17]}  Bxa7 {[%clk 0:00:26]} 31. Rxc7 {[%clk 0:01:15]}  Rxd3+ {[%clk 0:00:26]} 32. Ke2 {[%clk 0:01:15]}  Ra3 {[%clk 0:00:26]} 33. Bf3 {[%clk 0:01:09]}  g6 {[%clk 0:00:26]} 0-1


[Site "https://www.chess.com"]

[Event "Titled Tuesday Blitz March 28 Late 2023"]
[White "Krallis, Christos"]
[Black "Mackster23"]
[WhiteFideId "4298896"]
[WhiteElo "2243"]
[BlackElo "2475"]
[Result "1-0"]
[Round "02"]
[TimeControl "180+2"]
[Date "2023.03.28"]
[WhiteClock "0:00:42"]
[BlackClock "0:00:12"]

1. b3 {[%clk 0:02:56]}  e5 {[%clk 0:02:59]} 2. Bb2 {[%clk 0:02:55]}  Nc6 {[%clk 0:03:00]} 3. g3 {[%clk 0:02:56]}  Nf6 {[%clk 0:02:56]} 4. Bg2 {[%clk 0:02:57]}  d5 {[%clk 0:02:56]} 5. d3 {[%clk 0:02:55]}  Bb4+ {[%clk 0:02:50]} 6. Nd2 {[%clk 0:02:54]}  O-O {[%clk 0:02:49]} 7. a3 {[%clk 0:02:54]}  Bc5 {[%clk 0:02:42]} 8. e3 {[%clk 0:02:54]}  a5 {[%clk 0:02:41]} 9. Ne2 {[%clk 0:02:53]}  Ba7 {[%clk 0:02:36]} 10. Nf3 {[%clk 0:02:48]}  Re8 {[%clk 0:02:35]} 11. O-O {[%clk 0:02:44]}  Bg4 {[%clk 0:02:34]} 12. h3 {[%clk 0:02:44]}  Bh5 {[%clk 0:02:34]} 13. Nh4 {[%clk 0:02:40]}  Qd7 {[%clk 0:02:26]} 14. g4 {[%clk 0:02:14]}  Nxg4 {[%clk 0:02:17]} 15. Ng3 {[%clk 0:01:47]}  Nxe3 {[%clk 0:01:41]} 16. Qxh5 {[%clk 0:01:46]}  Nxf1 {[%clk 0:01:41]} 17. Rxf1 {[%clk 0:01:46]}  g6 {[%clk 0:01:30]} 18. Qh6 {[%clk 0:01:35]}  f6 {[%clk 0:01:03]} 19. Nxg6 {[%clk 0:01:19]}  hxg6 {[%clk 0:01:02]} 20. Qxg6+ {[%clk 0:01:19]}  Qg7 {[%clk 0:01:02]} 21. Bxd5+ {[%clk 0:01:18]}  Kf8 {[%clk 0:00:58]} 22. Qxg7+ {[%clk 0:01:05]}  Kxg7 {[%clk 0:00:59]} 23. Nf5+ {[%clk 0:01:05]}  Kg6 {[%clk 0:00:54]} 24. Be4 {[%clk 0:01:02]}  Kf7 {[%clk 0:00:52]} 25. Kg2 {[%clk 0:00:57]}  Nd4 {[%clk 0:00:45]} 26. Bxd4 {[%clk 0:00:56]}  Bxd4 {[%clk 0:00:44]} 27. Bxb7 {[%clk 0:00:54]}  Rab8 {[%clk 0:00:40]} 28. Bd5+ {[%clk 0:00:53]}  Kg6 {[%clk 0:00:40]} 29. Be4 {[%clk 0:00:54]}  Kf7 {[%clk 0:00:33]} 30. Kf3 {[%clk 0:00:54]}  Rh8 {[%clk 0:00:27]} 31. h4 {[%clk 0:00:52]}  Ke6 {[%clk 0:00:26]} 32. h5 {[%clk 0:00:47]}  Rbg8 {[%clk 0:00:23]} 33. Nxd4+ {[%clk 0:00:36]}  exd4 {[%clk 0:00:23]} 34. Bg6 {[%clk 0:00:37]}  Rd8 {[%clk 0:00:14]} 35. Re1+ {[%clk 0:00:37]}  Kd6 {[%clk 0:00:12]} 36. Kf4 {[%clk 0:00:36]}  c5 {[%clk 0:00:10]} 37. Kf5 {[%clk 0:00:37]}  Rdf8 {[%clk 0:00:11]} 38. Re6+ {[%clk 0:00:37]}  Kd7 {[%clk 0:00:11]} 39. Rxf6 {[%clk 0:00:34]}  Rxf6+ {[%clk 0:00:12]} 40. Kxf6 {[%clk 0:00:35]}  Rf8+ {[%clk 0:00:13]} 41. Kg7 {[%clk 0:00:35]}  Rxf2 {[%clk 0:00:13]} 42. h6 {[%clk 0:00:36]}  Rxc2 {[%clk 0:00:12]} 43. h7 {[%clk 0:00:36]}  Rh2 {[%clk 0:00:13]} 44. h8=Q {[%clk 0:00:36]}  Rxh8 {[%clk 0:00:14]} 45. Kxh8 {[%clk 0:00:37]}  Kc6 {[%clk 0:00:13]} 46. Bf7 {[%clk 0:00:36]}  Kd6 {[%clk 0:00:07]} 47. Bc4 {[%clk 0:00:36]}  Ke5 {[%clk 0:00:08]} 48. a4 {[%clk 0:00:36]}  Kf4 {[%clk 0:00:08]} 49. Kg8 {[%clk 0:00:37]}  Ke3 {[%clk 0:00:08]} 50. Kf7 {[%clk 0:00:38]}  Kd2 {[%clk 0:00:09]} 51. Ke6 {[%clk 0:00:39]}  Kc3 {[%clk 0:00:09]} 52. Kd5 {[%clk 0:00:40]}  Kb4 {[%clk 0:00:10]} 53. Kc6 {[%clk 0:00:40]}  Kc3 {[%clk 0:00:11]} 54. Kxc5 {[%clk 0:00:41]}  Kb2 {[%clk 0:00:11]} 55. Kxd4 {[%clk 0:00:42]}  Ka3 {[%clk 0:00:12]} 56. Kc3 {[%clk 0:00:42]} 1-0


[Site "https://www.chess.com"]

[Event "Titled Tuesday Blitz March 28 Late 2023"]
[White "Flores, Diego"]
[Black "Olsson, William"]
[WhiteFideId "108049"]
[BlackFideId "1741721"]
[WhiteElo "2606"]
[BlackElo "2197"]
[Result "0-1"]
[Round "02"]
[TimeControl "180+2"]
[Date "2023.03.28"]
[WhiteClock "0:00:04"]
[BlackClock "0:01:08"]

1. c4 {[%clk 0:03:00]}  c5 {[%clk 0:02:56]} 2. g3 {[%clk 0:02:57]}  Nc6 {[%clk 0:02:56]} 3. Bg2 {[%clk 0:02:57]}  g6 {[%clk 0:02:57]} 4. Nc3 {[%clk 0:02:56]}  Bg7 {[%clk 0:02:57]} 5. d3 {[%clk 0:02:55]}  e6 {[%clk 0:02:57]} 6. Bxc6 {[%clk 0:02:55]}  bxc6 {[%clk 0:02:53]} 7. Qd2 {[%clk 0:02:55]}  Ne7 {[%clk 0:02:53]} 8. b3 {[%clk 0:02:55]}  O-O {[%clk 0:02:52]} 9. Bb2 {[%clk 0:02:56]}  e5 {[%clk 0:02:42]} 10. O-O-O {[%clk 0:02:39]}  a5 {[%clk 0:02:28]} 11. Na4 {[%clk 0:02:36]}  d6 {[%clk 0:02:28]} 12. f4 {[%clk 0:02:35]}  Nf5 {[%clk 0:02:22]} 13. Nf3 {[%clk 0:02:28]}  Nd4 {[%clk 0:02:11]} 14. fxe5 {[%clk 0:02:26]}  dxe5 {[%clk 0:02:07]} 15. Nxc5 {[%clk 0:01:55]}  Bg4 {[%clk 0:02:06]} 16. Rdf1 {[%clk 0:01:39]}  Qe7 {[%clk 0:01:55]} 17. Na4 {[%clk 0:01:37]}  Rfd8 {[%clk 0:01:50]} 18. Nxd4 {[%clk 0:00:54]}  exd4 {[%clk 0:01:46]} 19. Rf2 {[%clk 0:00:46]}  Bf6 {[%clk 0:01:27]} 20. Kb1 {[%clk 0:00:20]}  Bg5 {[%clk 0:01:26]} 21. Qc2 {[%clk 0:00:16]}  Be3 {[%clk 0:01:25]} 22. Rff1 {[%clk 0:00:12]}  Bh3 {[%clk 0:01:25]} 23. Rf3 {[%clk 0:00:12]}  Bg2 {[%clk 0:01:23]} 24. Rxe3 {[%clk 0:00:10]}  Qxe3 {[%clk 0:01:23]} 25. Re1 {[%clk 0:00:10]}  Qf2 {[%clk 0:01:21]} 26. Qd2 {[%clk 0:00:10]}  Re8 {[%clk 0:01:13]} 27. Nb6 {[%clk 0:00:07]}  Rad8 {[%clk 0:01:12]} 28. c5 {[%clk 0:00:06]}  Bf3 {[%clk 0:01:09]} 29. Rc1 {[%clk 0:00:04]}  Rxe2 {[%clk 0:01:08]} 0-1


[Site "https://www.chess.com"]

[Event "Titled Tuesday Blitz March 28 Late 2023"]
[White "Hambleton, Aman"]
[Black "Kozin, Yuri"]
[WhiteFideId "2606577"]
[BlackFideId "4129920"]
[WhiteElo "2511"]
[BlackElo "2453"]
[Result "1-0"]
[Round "02"]
[TimeControl "180+2"]
[Date "2023.03.28"]
[WhiteClock "0:00:05"]
[BlackClock "0:00:02"]

1. d4 {[%clk 0:03:00]}  d5 {[%clk 0:02:52]} 2. Bf4 {[%clk 0:03:01]}  Nf6 {[%clk 0:02:52]} 3. e3 {[%clk 0:02:58]}  e6 {[%clk 0:02:53]} 4. Nd2 {[%clk 0:02:57]}  Bd6 {[%clk 0:02:53]} 5. Ngf3 {[%clk 0:02:56]}  Bxf4 {[%clk 0:02:53]} 6. exf4 {[%clk 0:02:56]}  O-O {[%clk 0:02:54]} 7. Bd3 {[%clk 0:02:53]}  b6 {[%clk 0:02:54]} 8. Qe2 {[%clk 0:02:53]}  a5 {[%clk 0:02:54]} 9. O-O {[%clk 0:02:54]}  Ba6 {[%clk 0:02:54]} 10. Bxa6 {[%clk 0:02:54]}  Nxa6 {[%clk 0:02:55]} 11. c3 {[%clk 0:02:54]}  c5 {[%clk 0:02:55]} 12. g3 {[%clk 0:02:53]}  cxd4 {[%clk 0:02:55]} 13. Nxd4 {[%clk 0:02:53]}  Nc5 {[%clk 0:02:56]} 14. Rfe1 {[%clk 0:02:53]}  Nce4 {[%clk 0:02:55]} 15. N2f3 {[%clk 0:02:37]}  g6 {[%clk 0:02:39]} 16. Kg2 {[%clk 0:02:36]}  Qc7 {[%clk 0:02:35]} 17. Ne5 {[%clk 0:02:26]}  Nd7 {[%clk 0:02:28]} 18. Nec6 {[%clk 0:02:20]}  Rfe8 {[%clk 0:02:21]} 19. Rad1 {[%clk 0:02:14]}  Nb8 {[%clk 0:02:13]} 20. Ne5 {[%clk 0:02:10]}  Nd7 {[%clk 0:02:13]} 21. Nb5 {[%clk 0:01:53]}  Qd8 {[%clk 0:01:51]} 22. f3 {[%clk 0:01:44]}  Nxe5 {[%clk 0:01:40]} 23. fxe5 {[%clk 0:01:00]}  Nc5 {[%clk 0:01:37]} 24. c4 {[%clk 0:01:00]}  Qg5 {[%clk 0:01:05]} 25. f4 {[%clk 0:00:56]}  Qe7 {[%clk 0:01:01]} 26. Nd6 {[%clk 0:00:44]}  Red8 {[%clk 0:00:52]} 27. cxd5 {[%clk 0:00:44]}  exd5 {[%clk 0:00:53]} 28. Rxd5 {[%clk 0:00:44]}  Ne6 {[%clk 0:00:39]} 29. Red1 {[%clk 0:00:42]}  Qc7 {[%clk 0:00:28]} 30. f5 {[%clk 0:00:22]}  Ng7 {[%clk 0:00:23]} 31. g4 {[%clk 0:00:19]}  Qc6 {[%clk 0:00:21]} 32. Qf3 {[%clk 0:00:18]}  Rf8 {[%clk 0:00:10]} 33. Ne4 {[%clk 0:00:15]}  Kh8 {[%clk 0:00:08]} 34. Nf6 {[%clk 0:00:13]}  Qc2+ {[%clk 0:00:04]} 35. R1d2 {[%clk 0:00:13]}  Qb1 {[%clk 0:00:05]} 36. Rf2 {[%clk 0:00:11]}  Rac8 {[%clk 0:00:03]} 37. Qh3 {[%clk 0:00:09]}  h5 {[%clk 0:00:02]} 38. gxh5 {[%clk 0:00:09]}  gxh5 {[%clk 0:00:02]} 39. Rd4 {[%clk 0:00:05]} 1-0


[Site "https://www.chess.com"]